Cogmind - Beta 13 @@@ ROGUE MODE // 2024.04.10 @ 18:00:16 Player: lazy_engineer Result: Destroyed by H-66 Slayer with Gauss Rifle Performance ------------- Evolutions (4) 2000 Regions Visited (7) 1400 Robots Destroyed (30) 150 Value Destroyed (884) 884 Prototype IDs (27) 540 Alien Tech Used (0) 0 Bonus (686) 686 TOTAL SCORE: 5660 Bonus ------- High Alert Combat Kills 43 Follower Combat Kills 343 Aligned with FarCom 300 Cogmind --------- Core Integrity 0/850 Matter 218/300 Energy 84/100 System Corruption 2% Temperature Cool (0) Movement Core (50) Location -6/Factory Parts ------- > --- POWER (2) -------- (None) > --- PROPULSION (4) --- (None) > --- UTILITY (6) ------ Improved Signal Interpreter > --- WEAPON (3) ------- Welding Torch > --- INVENTORY (5) ---- Light Fission Core Light Fission Core Advanced Weight Redist. System Advanced ECM Suite Improved Field Recycling Unit (0) Peak State ------------ > --- POWER ------------ Improved Deuterium Engine Improved Deuterium Engine > --- PROPULSION ------- Armored Treads Armored Huge Wheel Cooled Cesium-ion Thruster > --- UTILITY ---------- Large Storage Unit Advanced Weight Redist. System Structural Scanner Visual Processing Unit Sensor Array Improved Signal Interpreter > --- WEAPON ----------- Heavy Assault Rifle Precision Assault Rifle Heavy Flail > --- INVENTORY -------- Improved Treads Improved Treads Improved Treads Improved Treads Armored Treads Advanced Weight Redist. System Weapon Cycler Advanced ECM Suite Advanced ECM Suite Improved Field Recycling Unit Grenade Launcher Improved Datajack Axe [Rating: 49] Favorites ----------- Power Micro Nuclear Core Engine Ion Engine Power Core Micro Nuclear Core Propulsion Light Treads Treads Light Treads Wheel Armored Huge Wheel Flight Unit Nuclear Pulse Thruster Utility Structural Scanner Device Structural Scanner Storage Medium Storage Unit Processor Visual Processing Unit Protection Light Armor Plating Weapon Gauss Rifle Energy Gun Small Laser Ballistic Gun Gauss Rifle Launcher Grenade Launcher Special Weapon Field Lobotomy Kit Impact Weapon Heavy Flail Slashing Weapon Mining Claw Special Melee Weapon Improved Datajack Build | -11 -10 -10 -10 -9 -8 -7 -6 ------- Run | Yrd Mat Min Exi Min Mat Fac Fac Slots Evolved 8 | . . . . . 4 2 2 Power 1 | . . . . . . . 1 Propulsion 2 | . . . . . . 2 . Utility 4 | . . . . . 4 . . Weapon 1 | . . . . . . . 1 Parts Attached 90 | 6 15 6 1 10 21 8 23 Power 13 | 1 2 1 . . 3 1 5 Engine 9 | 1 2 1 . . 1 1 3 Core 4 | . . . . . 2 . 2 Reactor . | . . . . . . . . Propulsion 20 | 2 5 1 . 1 1 2 8 Treads 13 | 1 4 1 . . . 2 5 Leg . | . . . . . . . . Wheel 4 | 1 1 . . 1 1 . . Hover . | . . . . . . . . Flight 3 | . . . . . . . 3 Utility 16 | 1 4 . . . 7 3 1 Device 8 | . 1 . . . 4 2 1 Storage 3 | 1 1 . . . 1 . . Processor 3 | . . . . . 2 1 . Hackware . | . . . . . . . . Protection 2 | . 2 . . . . . . Artifact . | . . . . . . . . Weapon 41 | 2 4 4 1 9 10 2 9 Energy Gun 1 | 1 . . . . . . . Energy Cannon . | . . . . . . . . Ballistic Gun 23 | 1 4 1 1 6 6 1 3 Ballistic Cannon . | . . . . . . . . Launcher 3 | . . 1 . . 1 . 1 Special Weapon 5 | . . . . 2 2 . 1 Impact Weapon 1 | . . . . . . . 1 Slashing Weapon 7 | . . 2 . 1 1 1 2 Piercing Weapon . | . . . . . . . . Special Melee Weapon 1 | . . . . . . . 1 Unidentified Prototypes 4 | . . . . . 2 1 1 Parts Lost 25 | . . 3 . . . . 22 Power 7 | . . 1 . . . . 6 Propulsion 8 | . . 1 . . . . 7 Utility 4 | . . . . . . . 4 Weapon 6 | . . 1 . . . . 5 Highest Loss Streak 9 | . . 3 . . . . 9 To Critical Strikes 1 | . . . . . . . 1 Average Slot Usage (%) 91 | . 97 99 99 84 86 91 83 Engine 8 | . 13 14 14 14 . . 10 Core 2 | . . . . . 8 6 . Treads 12 | . 21 17 28 . . 15 16 Wheel 6 | . 5 10 . 13 9 7 2 Device 16 | . 1 14 14 14 23 23 18 Storage 10 | . 14 14 14 14 9 7 5 Processor 7 | . . . . . 18 14 10 Protection 1 | . 11 . . . . . . Ballistic Gun 16 | . 18 20 13 26 17 10 10 Slashing Weapon 3 | . . 5 14 . . 3 . Naked Turns . | . . . . . . . . Heaviest Build 53 | 10 19 21 20 28 35 46 53 Greatest Support 95 | 10 40 40 40 40 37 37 95 Greatest Overweight (x) 8 | . 5 1 . 6 1 1 8 Average Overweight (x) . | . . . . . . . . Largest Inventory Capacity 15 | 8 10 10 10 10 15 15 15 Average Capacity 11 | 6 9 10 10 10 12 15 14 Most Carried 15 | 4 10 10 9 10 15 15 14 Average Carried 10 | 2 7 9 7 9 11 14 11 Final Capacity 15 | 8 10 10 10 10 15 15 5 Final Carried 15 | 2 10 7 8 10 15 15 5 Class Distribution -------------------- 54% | Mutant 14% | Scavenger-Assassin 13% | Skirmisher 10% | Scavenger-Skirmisher Dominant Class ---------------- Mutant | -10/Materials Mutant | -10/Mines Mutant | -10/Exiles Mutant | -9/Mines Skirmisher | -8/Materials Scavenger-Skirmisher | -7/Factory Scavenger-Assassin | -6/Factory Resources | -11 -10 -10 -10 -9 -8 -7 -6 ----------- Run | Yrd Mat Min Exi Min Mat Fac Fac Matter Collected 1360 | 262 64 193 . 120 491 . 230 Remotely . | . . . . . . . . Salvage Created 1098 | 76 73 112 . 60 438 . 339 Parts 60 | 1 7 3 . 1 35 . 13 Haulers Intercepted 1 | . . . . . 1 . . Recyclers Shooed 2 | . . . . . 2 . . Parts Field Recycled 10 | . . . . . . 10 . Retrieved Matter 93 | . . . . . . 93 . Parts Self-Destructed . | . . . . . . . . Prevented . | . . . . . . . . Kills | -11 -10 -10 -10 -9 -8 -7 -6 ------- Run | Yrd Mat Min Exi Min Mat Fac Fac Combat Hostiles Destroyed 23 | . 2 3 . . 12 . 6 Melee 2 | . . . . . . . 2 Guns 15 | . 2 1 . . 11 . 1 AOE 4 | . . 2 . . 1 . 1 Classes Destroyed 9 | 1 2 1 . . 4 . 1 Builder 1 | . . . . . 1 . . Hauler 1 | . . . . . 1 . . Recycler 2 | 1 . . . . 1 . . Watcher 3 | . 2 . . . . . 1 Swarmer 9 | . 2 . . . 7 . . Grunt 9 | . . 3 . . 2 . 4 Duelist 1 | . . . . . . . 1 Sentry 3 | . . . . . 2 . 1 Hunter 1 | . . . . . 1 . . Best Kill Streak 5 | 1 2 2 . . 5 . 3 Combat Bots Only 5 | . 2 2 . . 5 . 3 Max Kills in Single Turn 2 | 1 1 1 . . 2 . 1 Gunslinging . | . . . . . . . . Exploded 1 | . . 1 . . 1 . 1 Melee 1 | . . . . . . . 1 Uniques/NPCs Destroyed . | . . . . . . . . Combat | -11 -10 -10 -10 -9 -8 -7 -6 -------- Run | Yrd Mat Min Exi Min Mat Fac Fac Hostile Shots Fired 297 | . 10 23 . 2 65 . 197 Missed 66 | . 4 1 . . 17 . 44 Damage Taken 4230 | . 47 297 . 59 609 22 3196 Core 1101 | . 16 24 . 25 173 . 863 Absorbed by Shields . | . . . . . . . . Core Remaining (%) 85 | 100 . . . 74 68 100 . Volleys Fired 89 | 2 16 10 . 3 38 . 20 Largest 2 | 2 2 2 . 1 2 . 2 Hottest 60 | 60 60 50 . . 51 . 58 Shots Fired 161 | 4 32 18 . 3 75 . 29 Gun 150 | 4 32 16 . . 73 . 25 Cannon . | . . . . . . . . Launcher 6 | . . 2 . . . . 4 Special 5 | . . . . 3 2 . . Kinetic 132 | 2 16 16 . . 73 . 25 Thermal 18 | 2 16 . . . . . . Explosive 6 | . . 2 . . . . 4 Electromagnetic . | . . . . . . . . Robot Hit Streak 10 | 3 5 8 . 2 10 . 8 Robot Miss Streak 4 | 1 3 2 . 3 4 . 2 Penetration Max 1 | . . . . . 1 . . Secondary Targets 1 | . . . . . 1 . . Max Gunslinging Chain 1 | . . . . . 1 . . Shots Hit Robots 114 | 3 17 12 . 3 40 . 39 Core Hits 47 | 2 6 6 . . 21 . 12 Critical Kills 2 | . . . . . 1 . 1 Critical Parts Destroyed 2 | . . . . . . . 2 Critical Strikes 5 | . . . . . 1 . 4 Destroy 1 | . . . . . 1 . . Smash 3 | . . . . . . . 3 Sever 1 | . . . . . . . 1 Melee Attacks 37 | . . 2 . 1 1 2 31 Impact 24 | . . . . . . . 24 Slashing 12 | . . 2 . 1 1 2 6 Piercing . | . . . . . . . . Sneak Attacks 1 | . . . . . . . 1 Combat Hostiles . | . . . . . . . . Follow-up Attacks . | . . . . . . . . Damage Inflicted 2552 | 29 153 236 . 46 854 . 1234 Guns 1403 | 29 153 143 . . 673 . 405 Cannons . | . . . . . . . . Explosions 485 | . . 93 . . 181 . 211 Melee 664 | . . . . 46 . . 618 Ramming . | . . . . . . . . Kinetic 1325 | 17 87 143 . . 673 . 405 Thermal 259 | 12 66 . . . 181 . . Explosive 304 | . . 93 . . . . 211 Electromagnetic . | . . . . . . . . Impact 564 | . . . . . . . 564 Slashing 100 | . . . . 46 . . 54 Piercing . | . . . . . . . . Highest Corruption 8 | . . . . . 8 . 2 Average Corruption 6 | . . . . . 6 . 1 Corruption Purged . | . . . . . . . . Corruption Blocked . | . . . . . . . . Effects 31 | . . . . . 31 . . Message Errors 11 | . . . . . 11 . . Matter Fused 11 | . . . . . 11 . . Heat Flow Errors 2 | . . . . . 2 . . Energy Discharges 2 | . . . . . 2 . . Data Loss (minor) 1 | . . . . . 1 . . Data Loss (major) 2 | . . . . . 2 . . Misfires 1 | . . . . . 1 . . Alerts 1 | . . . . . 1 . . Overload Shots . | . . . . . . . . Overflow Damage 176 | . . . . 14 68 . 94 Projectiles . | . . . . . . . . Explosions 68 | . . . . . 68 . . Melee 108 | . . . . 14 . . 94 Knockbacks 3 | . . . . . . . 3 Impact 3 | . . . . . . . 3 Kinetic . | . . . . . . . . Secondary . | . . . . . . . . Self-Inflicted Damage 189 | . . 10 . . 120 . 59 Shots 5 | . . 1 . . 2 . 2 Rammed . | . . . . . . . . Targets Rammed . | . . . . . . . . Kicked . | . . . . . . . . Crushed . | . . . . . . . . Highest Temperature 140 | 40 88 52 . . 140 . 6 Average Temperature 24 | 24 31 26 . . 19 . 3 Received Heat Transfer 714 | . . 189 . . 72 . 453 Siege Activations . | . . . . . . . . Robots Corrupted . | . . . . . . . . Combat Hostiles . | . . . . . . . . Parts Fried 2 | . . . . . . . 2 Impact Corruptions 3 | . . . . . . . 3 Robots Melted . | . . . . . . . . Combat Hostiles . | . . . . . . . . Parts Melted 1 | . . . . . 1 . . Heat Transferred 275 | 25 150 . . . 100 . . Parts Sabotaged . | . . . . . . . . Parts Stolen . | . . . . . . . . Parts Stripped . | . . . . . . . . Power Chain Reactions . | . . . . . . . . Alert | -11 -10 -10 -10 -9 -8 -7 -6 ------- Run | Yrd Mat Min Exi Min Mat Fac Fac Peak Influence 632 | 5 150 97 . 15 632 284 195 Initial 282 | . 3 5 . . 5 282 68 Average 93 | 2 82 21 . 7 172 202 55 Maximum Alert Level 2 | . . . . . 2 1 . Low Security (%) 83 | 100 100 100 . 100 66 42 100 Level 1 10 | . . . . . 8 57 . Level 2 6 | . . . . . 24 . . Level 3 . | . . . . . . . . Level 4 . | . . . . . . . . Level 5 . | . . . . . . . . High Security . | . . . . . . . . Max Security . | . . . . . . . . Squads Dispatched 9 | . . . . 1 4 1 3 Investigation 3 | . . . . 1 2 . . Extermination 1 | . . . . . . . 1 Reinforcement 5 | . . . . . 2 1 2 Assault . | . . . . . . . . Garrison . | . . . . . . . . Intercept . | . . . . . . . . Searches Triggered . | . . . . . . . . Construction Impeded . | . . . . . . . . Haulers Reinforced 1 | . . . . . . . 1 Active Scanning Responses . | . . . . . . . . Cargo Convoy Interrupts . | . . . . . . . . Stealth | -11 -10 -10 -10 -9 -8 -7 -6 --------- Run | Yrd Mat Min Exi Min Mat Fac Fac Distress Signals 7 | . 2 . . . 3 1 1 Communications Jammed . | . . . . . . . . Distress Signals . | . . . . . . . . Times Spotted 61 | . 9 5 . 1 28 2 16 Peak Tracking Total 8 | . 3 2 . 1 8 2 4 Tactical Retreats 8 | . 3 1 . . 2 1 1 Traps | -11 -10 -10 -10 -9 -8 -7 -6 ------- Run | Yrd Mat Min Exi Min Mat Fac Fac Traps Triggered 10 | . 4 . . . 3 1 2 Indirectly . | . . . . . . . . Trap Hack Attempts . | . . . . . . . . Triggered . | . . . . . . . . Disarmed . | . . . . . . . . Reprogrammed . | . . . . . . . . Reused . | . . . . . . . . Traps Extracted . | . . . . . . . . Installed . | . . . . . . . . Triggered . | . . . . . . . . Machines | -11 -10 -10 -10 -9 -8 -7 -6 ---------- Run | Yrd Mat Min Exi Min Mat Fac Fac Machines Disabled 3 | . . . . . 3 . . Max in Single Turn 2 | . . . . . 2 . . Machines Repaired . | . . . . . . . . Machines Dismantled . | . . . . . . . . Machines Sabotaged . | . . . . . . . . Overloaded Fab Kills . | . . . . . . . . Hacking | -11 -10 -10 -10 -9 -8 -7 -6 --------- Run | Yrd Mat Min Exi Min Mat Fac Fac Machines Accessed 11 | . 4 . 1 1 3 1 1 Terminals 6 | . 3 . . . 2 1 . Fabricators . | . . . . . . . . Repair Stations . | . . . . . . . . Recycling Units 1 | . 1 . . . . . . Scanalyzers 1 | . . . . . 1 . . Garrison Access 1 | . . . . . . . 1 Total Hacks 32 | . 17 . 1 1 8 2 3 Successful 18 | . 10 . 1 1 5 1 . Failed 14 | . 7 . . . 3 1 3 Catastrophic 1 | . 1 . . . . . . Database Lockouts . | . . . . . . . . Manual 17 | . 9 . 1 . 4 . 3 Terminals 17 | . 11 . . . 4 2 . Fabricators . | . . . . . . . . Repair Stations . | . . . . . . . . Recycling Units 6 | . 6 . . . . . . Scanalyzers 4 | . . . . . 4 . . Garrison Access 3 | . . . . . . . 3 Terminal Hacks 7 | . 3 . 1 1 1 1 . Record 1 | . . . . . . 1 . Open Door 1 | . . . . 1 . . . Locate Traps 1 | . 1 . . . . . . Hauler Manifests 2 | . 1 . . . 1 . . Zone Layout 1 | . 1 . . . . . . Derelict Proto ID Bank 1 | . . . 1 . . . . Fabricator Hacks . | . . . . . . . . Repair Station Hacks . | . . . . . . . . Recycling Unit Hacks 2 | . 2 . . . . . . Report Inventory 1 | . 1 . . . . . . Retrieve Components 1 | . 1 . . . . . . Scanalyzer 2 | . . . . . 2 . . Insert Component 1 | . . . . . 1 . . Analyze 1 | . . . . . 1 . . Garrison Access Hacks . | . . . . . . . . Unauthorized Hacks 7 | . 5 . . . 2 . . Terminals 5 | . 3 . . . 2 . . Track 2 | . 1 . . . 1 . . Botnet 1 | . 1 . . . . . . Operators 2 | . 1 . . . 1 . . Fabricators . | . . . . . . . . Repair Stations . | . . . . . . . . Recycling Units 2 | . 2 . . . . . . Monitor 1 | . 1 . . . . . . Reject 1 | . 1 . . . . . . Scanalyzers . | . . . . . . . . Garrison Access . | . . . . . . . . Data Cores Recovered . | . . . . . . . . Used . | . . . . . . . . Hacking Detections 8 | . 4 . . . 2 1 1 Full Trace Events 1 | . . . . . 1 . . Feedback Events . | . . . . . . . . Feedback Blocked . | . . . . . . . . Robot Schematics Acquired . | . . . . . . . . Robots Built . | . . . . . . . . Authchips . | . . . . . . . . Time . | . . . . . . . . Total Robot Build Rating . | . . . . . . . . Part Schematics Acquired 1 | . . . . . 1 . . Parts Built . | . . . . . . . . Authchips . | . . . . . . . . Time . | . . . . . . . . Total Part Build Rating . | . . . . . . . . Parts Repaired . | . . . . . . . . Time . | . . . . . . . . Parts Recycled . | . . . . . . . . Recycled Matter . | . . . . . . . . Retrieved Matter . | . . . . . . . . Retrieved Components 10 | . 10 . . . . . . Parts Scanalyzed 1 | . . . . . 1 . . Part Schematics Acquired 1 | . . . . . 1 . . Parts Damaged . | . . . . . . . . Bothacking | -11 -10 -10 -10 -9 -8 -7 -6 ------------ Run | Yrd Mat Min Exi Min Mat Fac Fac Used RIF Installer . | . . . . . . . . Robots Hacked 1 | . . . . . . . 1 Non-combat 1 | . . . . . . . 1 Combat . | . . . . . . . . Robot Hacks Applied 1 | . . . . . . . 1 no_distress 1 | . . . . . . . 1 Relay Couplers Released . | . . . . . . . . Fabnet Peak Effective % . | . . . . . . . . Robots Rewired . | . . . . . . . . Allies Hacked . | . . . . . . . . Hacks Repelled . | . . . . . . . . Allies | -11 -10 -10 -10 -9 -8 -7 -6 -------- Run | Yrd Mat Min Exi Min Mat Fac Fac Total Allies 8 | . . 4 . 2 2 . . Largest Group 4 | . . 3 . 2 4 . . Highest-Rated Group 154 | . . 47 . 49 154 . . Highest-Rated Ally 90 | . . 31 . 34 90 . . Total Orders 16 | . . 3 . 2 11 . . STAY 5 | . . . . 1 4 . . ROAM 3 | . . 3 . . . . . FOLLOW 2 | . . . . 1 1 . . GUARD 6 | . . . . . 6 . . Ally Attacks 70 | . . 35 . . 35 . . Total Damage 1740 | . . 303 . . 1437 . . Kills 17 | . . 4 . . 13 . . Allies Corrupted . | . . . . . . . . Allies Melted 1 | . . 1 . . . . . Field Lobotomies 4 | . . . . 2 2 . . Intel | -11 -10 -10 -10 -9 -8 -7 -6 ------- Run | Yrd Mat Min Exi Min Mat Fac Fac Robot Analysis Total . | . . . . . . . . Derelict Logs Recovered 3 | . . 2 . 1 . . . Drone Launches . | . . . . . . . . Drone Recoveries . | . . . . . . . . Exploration | -11 -10 -10 -10 -9 -8 -7 -6 ------------- Run | Yrd Mat Min Exi Min Mat Fac Fac Turns Passed 5847 | 47 505 910 818 701 1240 692 934 Spaces Moved 3188 | 37 318 530 510 577 431 389 396 Core 107 | 7 2 . . 2 . . 96 Treads 1361 | . 176 478 510 8 . . 189 Legs . | . . . . . . . . Wheels 1710 | 30 140 52 . 567 431 389 101 Hover . | . . . . . . . . Flight 10 | . . . . . . . 10 Fastest Speed 50 | 50 80 95 160 100 100 100 50 Average Speed 127 | 74 131 154 160 101 100 103 143 Slowest Speed 450 | 80 300 240 160 350 115 115 450 Overloaded Moves . | . . . . . . . . Propulsion Burnouts . | . . . . . . . . Robots Hopped . | . . . . . . . . Cave-ins Triggered . | . . . . . . . . Exploration Rate (%) 52 | 3 62 95 91 91 47 16 12 Regions Visited 7 Branch Regions 3 Pre-discovered Areas 2 | . . 2 . . . . . Known Exits Taken 2 | . . . . . 1 1 . Unknown Exits Taken 5 | 1 1 1 1 1 . . . Scrap Searched 3 | . . 1 . 2 . . . Spaces Dug 8 | . . 1 . . 1 2 4 Terrain Destroyed 88 | . . 17 . . 49 2 20 Melee 8 | . . 1 . . 1 2 4 Projectile 2 | . . . . . 2 . . AOE 78 | . . 16 . . 46 . 16 Terrain Rammed . | . . . . . . . . Walls Destroyed . | . . . . . . . . Machines Disabled . | . . . . . . . . Actions | -11 -10 -10 -10 -9 -8 -7 -6 --------- Run | Yrd Mat Min Exi Min Mat Fac Fac Total 4735 | 52 373 600 513 682 1160 673 682 Wait 1255 | . 8 53 1 80 648 264 201 Move 3181 | 36 317 529 509 576 430 388 396 Hop . | . . . . . . . . Pick Up 58 | 8 14 . 1 6 14 5 10 Fast Attach 13 | . 7 . . . 2 3 1 Attach 44 | 6 5 3 1 3 8 2 16 Detach 4 | . . . 1 1 2 . . Swap 33 | . 3 3 . 7 11 3 6 Drop 21 | . 3 . . 5 6 6 1 Fire 89 | 2 16 10 . 3 38 . 20 Melee 37 | . . 2 . 1 1 2 31 Ram . | . . . . . . . . Kick . | . . . . . . . . Crush . | . . . . . . . . Escape Stasis . | . . . . . . . . Rewire . | . . . . . . . . Trap . | . . . . . . . . Miscellaneous . | . . . . . . . . Route ------- -11/Scrapyard -10/Materials (discovered 2 exits: [*Mat] / [*Min]) -10/Mines (discovered 3 exits: [*Mat x2] / *Exi) -10/Exiles -9/Mines -8/Materials -7/Factory -6/Factory History --------- Turn | Location | Event 6 | -11/Scrapyard | Discovered new exit (range 15) 48 | -11/Scrapyard | Entered Materials 215 | -10/Materials | Discovered new exit (range 15) 316 | -10/Materials | Build established: Mutant 491 | -10/Materials | Discovered new exit (range 7) 553 | -10/Materials | Entered Mines 557 | -10/Mines | Assisted by bots powering up and referring to "LRC-V3" 882 | -10/Mines | Received a Mining Laser from a helpful Derelict 1171 | -10/Mines | Discovered new exit (range 9) 1291 | -10/Mines | Lost 3 parts (1p1n1w) 1392 | -10/Mines | Deemed a non-threat by the Exiles lab entrance 1392 | -10/Mines | Discovered new exit (range 5) 1415 | -10/Mines | Discovered new exit (range 6) 1463 | -10/Mines | Entered Exiles 1502 | -10/Exiles | Met 8R-AWN 1529 | -10/Exiles | Met EX-HEX 1625 | -10/Exiles | Met EX-BIN 1648 | -10/Exiles | Aligned with FarCom system 1650 | -10/Exiles | Given EX-Vault access code 1688 | -10/Exiles | Opened EX-Vault 1700 | -10/Exiles | Found Field Lobotomy Kit 1733 | -10/Exiles | Warned to stay clear of 0b10 Research branches 1779 | -10/Exiles | Met EX-DEC 1882 | -10/Exiles | Visited The Gauntlet 2267 | -10/Exiles | Discovered new exit (range 10) 2281 | -10/Exiles | Left Exiles lab with Field Lobotomy Kit 2281 | -10/Exiles | Entered Mines 2282 | -9/Mines | Assembled infested the area 2292 | -9/Mines | Met a Derelict shopkeep closing up shop 2460 | -9/Mines | Discovered new exit (range 9) 2516 | -9/Mines | Learned 2 Materials zone layouts 2519 | -9/Mines | Found a hidden stash of uninstalled traps 2738 | -9/Mines | Assimilated D-53 Grenadier with FLK Orb 2860 | -9/Mines | Joined a pair of Derelicts in attacking an 0b10 outpost 2866 | -9/Mines | Assimilated Y-45 Defender with FLK Orb 2982 | -9/Mines | Entered Materials 2982 | -8/Materials | Accompanied by 2 allies 2982 | -8/Materials | Evolved 4 slots: Utility x4 3242 | -8/Materials | Assimilated H-61 Shepherd with FLK Orb 3289 | -8/Materials | Build established: Skirmisher 3664 | -8/Materials | Assimilated Y-45 Defender with FLK Orb 3923 | -8/Materials | Lost 3 allies 4214 | -8/Materials | Discovered new exit (range 8) 4219 | -8/Materials | Identified exit to Factory 4222 | -8/Materials | Entered Factory 4222 | -7/Factory | Evolved 2 slots: Propulsion x2 4244 | -7/Factory | Build established: Scavenger-Skirmisher 4902 | -7/Factory | Discovered new exit (range 11) 4913 | -7/Factory | Identified exit to Factory 4914 | -7/Factory | Entered another Factory area 4914 | -6/Factory | Evolved 2 slots: Power x1, Weapon x1 5264 | -6/Factory | Build established: Scavenger-Assassin 5708 | -6/Factory | Lost 9 parts (2p3n2u2w) 5780 | -6/Factory | Lost 3 parts (1p1n1u) 5817 | -6/Factory | Core integrity fell below 50% 5837 | -6/Factory | Core integrity fell below 20% 5848 | -6/Factory | Destroyed by H-66 Slayer with Gauss Rifle Last Messages --------------- 05824_ U-05 Engineer lays Concrete. 05826_ Penetrated by Slug. 05826_ Dropped Lrg. Storage Unit. 05827_ U-05 Engineer builds a Wall. 05828_ Acquired 12 matter. 05829_ Penetrated by Slug. 05831_ Slug penetrates Wall. 05831_ U-05 Engineer builds a Wall. 05832_ Slug penetrates Wall. 05835_ Wall collapses. 05835_ U-05 Engineer builds a Wall. 05835_ Slug penetrates Wall. 05836_ U-05 Engineer builds a Wall. 05836_ Penetrated by Slug. 05838_ U-05 Engineer builds a Wall. 05840_ Penetrated by Slug. 05841_ Slug penetrates Wall. 05844_ Penetrated by Slug. 05847_ Acquired Unknown Special Weapon. 05847_ Identified Welding Torch. Map ----- +----------------------------------------------------+ | ????????????## # """ """ ##?????## "" "" ## | | ????????????## / ##?????## ## | | ????????????## # ##?????## ## | | ????????????## # ######### ## | | ????????????## ####+################# ] ## | | ????????????## +% ## | | ????????????## # ## | | ????????????## """"" + ## | | ############## """F"" # """" ## | | # """ # """ "" """""" """""" # """" ## | | # "Y" " " " # =/= """""" """""" # """" ## | | # " " " # /= """""" """""" # """" ## | | # " " " # """""" """""" # """" # | | # " " " # # """" # | | # " " " + # """" / | | # " " " # ? # # | | # " " " # ?? ######### | | # " " " # ###############??w ######### | | # " " " # # !#####?? ##?????## | | # # u=#!h [ ##????? ????? | | # # !%/h/ ##????? ???? | | ############## !#u ##????? ??? | | ????????????## !#!u ##????? ??? | | ????????????## # ! [ ##????? | | ?????????????# # = ! #??????########+##### | | ?????????????# # !=%@ #??????### | | ?????????????# ###########???????????????????? | | ?????????????# #######*#?????????????????????? | | ?????????????# #?????###?????????????????????? | | ?????????????# #?????????????????????????????? | | ?????????????# #?????????????????????????????? | | ?????????????# #?????????????????????????????? | | ?????????????# ??????????????????????????????? | | ?????????????# ??????????????????????????????? | | ???????????????? ??????????????????????????????? | | ?????????????????????????????????????????????????? | | ?????????????????????????????????????????????????? | | ?????????????????????????????????????????????????? | | ?????????????????????????????????????????????????? | | ?????????????????????????????????????????????????? | | ?????????????????????????????????????????????????? | | ?????????????????????????????????????????????????? | | ?????????????????????????????????????????????????? | | ?????????????????????????????????????????????????? | | ?????????????????????????????????????????????????? | | ?????????????????????????????????????????????????? | | ?????????????????????????????????????????????????? | | ?????????????????????????????????????????????????? | | ?????????????????????????????????????????????????? | | | +----------------------------------------------------+ Best States ------------- Heat Dissipation 37 Energy Generation 31 Energy Capacity 480 Matter Stores 300 Matter Capacity 300 Sight Range 18 Robot Scan Range 14 Terrain Scan Density 10 ECM Strength 2 Jamming Range 12 Additional Mass Support 9 Armor Coverage 150 Evasion (%) 50 Recoil Reduction 4 Item Schematics ----------------- Arm. Huge Wheel | -8/Materials | Scanalyzed Robot Schematics ------------------ None Fabricated ------------ Nothing Alien Tech Used ----------------- None Achievements -------------- None Challenges ------------ None Game ------ Seed ChromaticServoCutter Manual? 0 Play Time 00:52:07 Cumulative 30.7 hours Start 2024.04.10 @ 17:09:05 End 2024.04.10 @ 18:00:16 Sessions 1 Manual Loads 0 Difficulty Rogue Special Mode None Game No. 60 Rogue 60 Adventurer 0 Explorer 0 Win Type - Total 0 Types 0/0/0/0/0/0/0/0/0 Lore% 23 Gallery% 26 Achievement% 22 Wizard Run 0 Options --------- Layout 0 ASCII 0 Keyboard 0 Movement Mouse Keybinds 0 Fullscreen 1 Font 24/Smallcaps Map View 76x50 Zoom Use 0% Tactical HUD 1 Map Filters NONE Filters NONE Steam 1 RUN: c73ba4c2-6d1c-4182-92ca-61c90b951a18